[Event "Colombia Tierra de Atletas-B 2020"]
[Site "Medellin"]
[Date "2020.12.12"]
[Round "1.1"]
[White "Argote Heredia, Valentina"]
[Black "Morales, Jhon Alexander"]
[Result "1/2-1/2"]
[ECO "B92"]
[WhiteElo "2150"]
[BlackElo "2400"]
[Annotator "ChessBase"]
[PlyCount "83"]
[EventDate "2020.12.10"]
[EventType "tourn"]
[EventCountry "COL"]
[SourceTitle "playchess.com"]
[Source "ChessBase"]
[SourceQuality "1"]
[TimeControl "40/5400+30:1800+30"]

1. e4 {[%emt 0:00:00]} c5 {[%emt 0:01:37]} 2. Nf3 {[%emt 0:01:53]} d6 {[%emt 0:01:44]} 3. d4 {[%emt 0:01:16]} cxd4 {[%emt 0:00:09]} 4. Nxd4 {[%emt 0:00:06]} Nf6 {[%emt 0:00:24]} 5. Nc3 {[%emt 0:01:17]} a6 {[%emt 0:00:38]} 6. Be2 {[%emt 0:02:10]} e5 {[%emt 0:10:22]} 7. Nb3 {[%emt 0:03:57]} Be7 {[%emt 0:00:09]} 8. O-O {[%emt 0:03:51]} O-O {[%emt 0:00:52]} 9. Kh1 {[%emt 0:01:47]} b6 {[%emt 0:05:06]} 10. Bg5 {[%emt 0:04:40]} Nbd7 {[%emt 0:09:43]} 11. Nd5 {[%emt 0:06:36]} Nxd5 {[%emt 0:01:45]} 12. Qxd5 {[%emt 0:00:07]} Rb8 {[%emt 0:00:44]} 13. Bxe7 {[%emt 0:04:40]} Qxe7 {[%emt 0:03:58]} 14. Rad1 {[%emt 0:02:51]} Nf6 {[%emt 0:10:01]} 15. Qxd6 {[%emt 0:06:41]} Qxd6 {[%emt 0:00:27]} 16. Rxd6 {[%emt 0:00:05]} Nxe4 {[%emt 0:00:15]} 17. Rd5 {[%emt 0:00:05]} f6 {[%emt 0:03:07]} 18. f3 {[%emt 0:06:04]} Ng5 {[%emt 0:01:35]} 19. Rd2 {[%emt 0:00:56]} Be6 {[%emt 0:07:48]} 20. Rfd1 {[%emt 0:08:14]} Nf7 {[%emt 0:00:25]} 21. Nc1 {[%emt 0:03:04]} a5 {[%emt 0:01:09]} 22. Kg1 {[%emt 0:01:50]} Rfd8 {[%emt 0:05:34]} 23. Rxd8+ {[%emt 0:04:38]} Rxd8 {[%emt 0:01:41]} 24. Rxd8+ {[%emt 0:00:04]} Nxd8 {[%emt 0:00:09]} 25. Kf2 {[%emt 0:00:13]} Kf8 {[%emt 0:00:10]} 26. Ke3 {[%emt 0:03:29]} Ke7 {[%emt 0:01:19]} 27. Bd3 {[%emt 0:00:37]} g6 {[%emt 0:02:46]} 28. a3 {[%emt 0:02:56]} Kd6 {[%emt 0:01:17]} 29. Ne2 {[%emt 0:00:36]} Nc6 {[%emt 0:01:15]} 30. Nc3 {[%emt 0:00:55]} Nd4 {[%emt 0:03:25]} 31. Nb5+ {[%emt 0:02:07]} Nxb5 {[%emt 0:06:46]} 32. Bxb5 {[%emt 0:00:04]} Kc5 {[%emt 0:05:58]} 33. Bd3 {[%emt 0:03:21]} Bf7 {[%emt 0:03:47]} 34. f4 {[%emt 0:01:00]} Kd6 {[%emt 0:06:39]} 35. g3 {[%emt 0:01:35]} Kd5 {[%emt 0:00:48]} 36. Be4+ {[%emt 0:00:08]} Kd6 {[%emt 0:00:10]} 37. Bd3 {[%emt 0:00:04]} Kd5 {[%emt 0:01:28]} 38. Be4+ {[%emt 0:00:04]} Kd6 {[%emt 0:00:36]} 39. Bd3 {[%emt 0:00:04]} Bg8 {[%emt 0:02:00]} 40. Bb5 {[%emt 0:00:00]} Be6 {[%emt 0:00:00]} 41. Bd3 {[%emt 0:02:34]} Kd5 {[%emt 0:00:49]} 42. Be4+ {[%emt 0:00:07]} 1/2-1/2

[Event "Colombia Tierra de Atletas-B 2020"]
[Site "Medellin"]
[Date "2020.12.12"]
[Round "1.2"]
[White "Mateus, Alejandro"]
[Black "Palencia Morales, Wilson Guillermo"]
[Result "0-1"]
[ECO "C65"]
[WhiteElo "2353"]
[BlackElo "2340"]
[Annotator "ChessBase"]
[PlyCount "145"]
[EventDate "2020.12.10"]
[EventType "tourn"]
[EventCountry "COL"]
[SourceTitle "playchess.com"]
[Source "ChessBase"]
[SourceQuality "1"]
[TimeControl "40/5400+30:1800+30"]

1. e4 {[%emt 0:00:00]} e5 {[%emt 0:02:51]} 2. Nf3 {[%emt 0:00:02]} Nc6 {[%emt 0:00:05]} 3. Bb5 {[%emt 0:00:36]} Nf6 {[%emt 0:00:08]} 4. d3 {[%emt 0:01:28]} Bc5 {[%emt 0:00:08]} 5. c3 {[%emt 0:01:55]} d5 {[%emt 0:00:09]} 6. Nxe5 {[%emt 0:08:59]} O-O {[%emt 0:00:24]} 7. Bxc6 {[%emt 0:03:33]} bxc6 {[%emt 0:00:48]} 8. d4 {[%emt 0:03:13]} Bb6 {[%emt 0:00:25]} 9. exd5 {[%emt 0:04:18]} cxd5 {[%emt 0:10:31]} 10. O-O {[%emt 0:01:15]} Qd6 {[%emt 0:06:32]} 11. Re1 {[%emt 0:06:48]} Ne4 {[%emt 0:03:43]} 12. Nd2 {[%emt 0:04:02]} Nxd2 {[%emt 0:01:06]} 13. Bxd2 {[%emt 0:03:19]} f6 {[%emt 0:00:08]} 14. Nd3 {[%emt 0:01:13]} g5 {[%emt 0:03:14]} 15. Qf3 {[%emt 0:05:45]} c6 {[%emt 0:01:07]} 16. Re3 {[%emt 0:06:30]} Bc7 {[%emt 0:04:14]} 17. g3 {[%emt 0:00:20]} Qd7 {[%emt 0:08:34]} 18. Qh5 {[%emt 0:07:12]} Qh3 {[%emt 0:04:42]} 19. Qxh3 {[%emt 0:00:26]} Bxh3 {[%emt 0:00:07]} 20. Rae1 {[%emt 0:03:18]} Bd6 {[%emt 0:01:26]} 21. f3 {[%emt 0:02:58]} Bf5 {[%emt 0:02:24]} 22. g4 {[%emt 0:09:05]} Bd7 {[%emt 0:01:14]} 23. R1e2 {[%emt 0:04:34]} h5 {[%emt 0:01:19]} 24. gxh5 {[%emt 0:01:22]} Kf7 {[%emt 0:00:22]} 25. Be1 {[%emt 0:02:21]} Rh8 {[%emt 0:00:06]} 26. Bg3 {[%emt 0:03:12]} Bf8 {[%emt 0:00:10]} 27. Bc7 {[%emt 0:04:03]} Rxh5 {[%emt 0:01:48]} 28. Ba5 {[%emt 0:02:00]} Bf5 {[%emt 0:00:55]} 29. Bb4 {[%emt 0:02:00]} Bg7 {[%emt 0:19:58]} 30. Nc5 {[%emt 0:03:21]} a5 {[%emt 0:00:34]} 31. Ba3 {[%emt 0:00:06]} Bf8 {[%emt 0:05:54]} 32. Nb7 {[%emt 0:00:50]} Bxa3 {[%emt 0:04:23]} 33. bxa3 {[%emt 0:00:06]} Rh3 {[%emt 0:01:47]} 34. Nc5 {[%emt 0:04:14]} Rb8 {[%emt 0:01:22]} 35. Nb3 {[%emt 0:00:20]} a4 {[%emt 0:01:52]} 36. Nc5 {[%emt 0:00:06]} Kg6 {[%emt 0:03:19]} 37. Kg2 {[%emt 0:01:35]} Rh7 {[%emt 0:02:38]} 38. Re8 {[%emt 0:00:48]} Bh3+ {[%emt 0:02:28]} 39. Kg3 {[%emt 0:00:24]} Rb1 {[%emt 0:00:18]} 40. Re1 {[%emt 0:00:00]} Rb2 {[%emt 0:00:00]} 41. R8e2 {[%emt 0:02:19]} Rb8 {[%emt 0:01:24]} 42. Na6 {[%emt 0:11:17]} Rbh8 {[%emt 0:02:30]} 43. Re8 {[%emt 0:01:01]} Rxe8 {[%emt 0:11:18]} 44. Rxe8 {[%emt 0:00:06]} Bd7 {[%emt 0:01:05]} 45. Re2 {[%emt 0:10:24]} f5 {[%emt 0:06:13]} 46. Nc5 {[%emt 0:02:22]} f4+ {[%emt 0:00:15]} 47. Kg2 {[%emt 0:00:06]} Bh3+ {[%emt 0:00:56]} 48. Kf2 {[%emt 0:02:41]} Bf5 {[%emt 0:00:40]} 49. Ke1 {[%emt 0:00:20]} Rh3 {[%emt 0:02:50]} 50. Rf2 {[%emt 0:00:23]} Rh8 {[%emt 0:00:07]} 51. Kd2 {[%emt 0:01:34]} Rb8 {[%emt 0:02:12]} 52. Kc1 {[%emt 0:02:53]} Rb1+ {[%emt 0:01:45]} 53. Kd2 {[%emt 0:00:05]} Ra1 {[%emt 0:00:22]} 54. Nxa4 {[%emt 0:00:51]} Rxa2+ {[%emt 0:00:20]} 55. Ke1 {[%emt 0:00:05]} Rxa3 {[%emt 0:00:14]} 56. Nc5 {[%emt 0:00:10]} Rxc3 {[%emt 0:00:21]} 57. Kf1 {[%emt 0:01:38]} Rc1+ {[%emt 0:03:03]} 58. Kg2 {[%emt 0:01:50]} Rd1 {[%emt 0:00:30]} 59. Rb2 {[%emt 0:00:48]} Rxd4 {[%emt 0:00:42]} 60. Rb6 {[%emt 0:00:08]} Rd2+ {[%emt 0:00:11]} 61. Kg1 {[%emt 0:00:06]} Bh3 {[%emt 0:00:43]} 62. Rxc6+ {[%emt 0:00:06]} Kf7 {[%emt 0:06:38]} 63. Rh6 {[%emt 0:00:33]} Bf5 {[%emt 0:00:29]} 64. h4 {[%emt 0:01:19]} g4 {[%emt 0:00:35]} 65. fxg4 {[%emt 0:00:11]} Bxg4 {[%emt 0:00:12]} 66. Rh7+ {[%emt 0:01:13]} Kg6 {[%emt 0:00:21]} 67. Rh8 {[%emt 0:00:24]} Kg7 {[%emt 0:00:32]} 68. Ra8 {[%emt 0:00:43]} f3 {[%emt 0:00:35]} 69. Ra7+ {[%emt 0:00:26]} Kf6 {[%emt 0:00:49]} 70. Nd7+ {[%emt 0:00:48]} Kf5 {[%emt 0:00:24]} 71. Ra6 {[%emt 0:00:20]} f2+ {[%emt 0:00:13]} 72. Kg2 {[%emt 0:00:08]} Bh3+ {[%emt 0:01:26]} 73. Kg3 {[%emt 0:01:35]} 0-1

[Event "Colombia Tierra de Atletas-B 2020"]
[Site "Medellin"]
[Date "2020.12.12"]
[Round "1.3"]
[White "Escobar Medina, Andres F"]
[Black "Malka, Samuel"]
[Result "0-1"]
[ECO "B52"]
[WhiteElo "2249"]
[BlackElo "2203"]
[Annotator "ChessBase"]
[PlyCount "68"]
[EventDate "2020.12.10"]
[EventType "tourn"]
[EventCountry "COL"]
[SourceTitle "playchess.com"]
[Source "ChessBase"]
[SourceQuality "1"]
[TimeControl "40/5400+30:1800+30"]

1. e4 {[%emt 0:02:32]} c5 {[%emt 0:00:00]} 2. Nf3 {[%emt 0:00:01]} d6 {[%emt 0:00:00]} 3. Bb5+ {[%emt 0:00:06]} Bd7 {[%emt 0:00:00]} 4. Bxd7+ {[%emt 0:00:08]} Qxd7 {[%emt 0:00:00]} 5. c4 {[%emt 0:00:15]} Nf6 {[%emt 0:00:00]} 6. Nc3 {[%emt 0:00:03]} g6 {[%emt 0:00:00]} 7. d4 {[%emt 0:00:05]} cxd4 {[%emt 0:00:00]} 8. Nxd4 {[%emt 0:00:05]} Bg7 {[%emt 0:00:00]} 9. f3 {[%emt 0:00:43]} O-O {[%emt 0:00:08]} 10. Be3 {[%emt 0:00:12]} Nc6 {[%emt 0:00:32]} 11. Nde2 {[%emt 0:00:59]} a6 {[%emt 0:04:00]} 12. b3 {[%emt 0:01:34]} b5 {[%emt 0:11:58]} 13. cxb5 {[%emt 0:05:54]} axb5 {[%emt 0:00:11]} 14. O-O {[%emt 0:00:08]} Qb7 {[%emt 0:03:22]} 15. Rc1 {[%emt 0:05:37]} Rfd8 {[%emt 0:08:59]} 16. Nd4 {[%emt 0:02:24]} Nxd4 {[%emt 0:01:24]} 17. Bxd4 {[%emt 0:00:03]} e5 {[%emt 0:00:35]} 18. Be3 {[%emt 0:00:51]} d5 {[%emt 0:00:17]} 19. exd5 {[%emt 0:00:05]} b4 {[%emt 0:06:44]} 20. Na4 {[%emt 0:00:11]} Nxd5 {[%emt 0:00:12]} 21. Qe2 {[%emt 0:00:09]} e4 {[%emt 0:02:06]} 22. Rc4 {[%emt 0:03:38]} Nxe3 {[%emt 0:03:40]} 23. Qxe3 {[%emt 0:00:08]} exf3 {[%emt 0:00:29]} 24. Rxf3 {[%emt 0:07:18]} Re8 {[%emt 0:12:39]} 25. Qf4 {[%emt 0:11:15]} Be5 {[%emt 0:08:30]} 26. Qc1 {[%emt 0:09:40]} Rad8 {[%emt 0:04:40]} 27. Rf1 {[%emt 0:05:18]} Bd4+ {[%emt 0:15:25]} 28. Kh1 {[%emt 0:00:04]} Re2 {[%emt 0:00:47]} 29. Rc6 {[%emt 0:05:03]} Rd6 {[%emt 0:05:44]} 30. Qc4 {[%emt 0:00:05]} Rd2 {[%emt 0:10:28]} 31. Qc1 {[%emt 0:00:06]} Rxg2 {[%emt 0:00:45]} 32. Rc8+ {[%emt 0:00:07]} Kg7 {[%emt 0:00:13]} 33. Rxf7+ {[%emt 0:00:12]} Qxf7 {[%emt 0:00:31]} 34. Rc7 {[%emt 0:00:06]} Rg1+ {[%emt 0:00:35]} 0-1

[Event "Colombia Tierra de Atletas-B 2020"]
[Site "Medellin"]
[Date "2020.12.12"]
[Round "1.5"]
[White "Benitez Lozano, Javier"]
[Black "Araujo Sanchez, Josue"]
[Result "0-1"]
[ECO "A22"]
[WhiteElo "2350"]
[BlackElo "2337"]
[Annotator "ChessBase"]
[PlyCount "154"]
[EventDate "2020.12.10"]
[EventType "tourn"]
[EventCountry "COL"]
[SourceTitle "playchess.com"]
[Source "ChessBase"]
[SourceQuality "1"]
[TimeControl "40/5400+30:1800+30"]

1. c4 {[%emt 0:00:00]} e5 {[%emt 0:00:16]} 2. Nc3 {[%emt 1:31:00]} Nf6 3. Nf3 d6 4. g3 {[%emt 0:00:00]} Be7 {[%emt 0:01:09]} 5. Bg2 {[%emt 0:00:00]} O-O {[%emt 0:05:16]} 6. O-O {[%emt 0:00:00]} Re8 {[%emt 0:01:09]} 7. d4 {[%emt 0:00:00]} exd4 {[%emt 0:01:10]} 8. Nxd4 {[%emt 0:00:00]} c6 {[%emt 0:01:18]} 9. b3 {[%emt 0:00:00]} a5 {[%emt 0:05:42]} 10. Qc2 {[%emt 0:00:00]} Na6 {[%emt 0:01:27]} 11. Rd1 {[%emt 0:00:00]} Qb6 {[%emt 0:04:31]} 12. Nf5 {[%emt 0:00:00]} Bxf5 {[%emt 0:06:33]} 13. Qxf5 {[%emt 0:00:00]} Nc5 {[%emt 0:01:37]} 14. Be3 {[%emt 0:00:00]} Qb4 {[%emt 0:17:45]} 15. Rac1 {[%emt 0:00:00]} Nfd7 {[%emt 0:01:27]} 16. Bd2 {[%emt 0:00:00]} Qb6 {[%emt 0:07:57]} 17. Rb1 {[%emt 0:04:01]} Ne5 {[%emt 0:03:43]} 18. Be3 {[%emt 0:01:37]} Qb4 {[%emt 0:06:31]} 19. Bd2 {[%emt 0:02:13]} Qb6 {[%emt 0:02:52]} 20. Be3 {[%emt 0:00:35]} Qb4 {[%emt 0:04:51]} 21. Rdc1 {[%emt 0:00:17]} g6 {[%emt 0:01:05]} 22. Qc2 {[%emt 0:00:40]} Ng4 {[%emt 0:01:38]} 23. Bd2 {[%emt 0:01:07]} Qb6 24. Rf1 f5 25. h3 Nf6 26. Be3 Qc7 27. Bxc5 {[%emt 0:01:28]} dxc5 {[%emt 0:06:32]} 28. e3 {[%emt 0:00:13]} Bf8 {[%emt 0:03:43]} 29. Rbd1 {[%emt 0:00:22]} Qe5 {[%emt 0:01:57]} 30. Rd3 {[%emt 0:01:27]} h5 31. h4 Bh6 32. Ne2 Rad8 33. Rfd1 Rxd3 34. Qxd3 Kf7 35. Bf3 Re7 36. Kg2 Qc7 37. Qc3 Nd7 38. Nf4 Bxf4 39. gxf4 {[%emt 0:03:56]} Nf6 {[%emt 0:08:33]} 40. Rd3 {[%emt 0:00:00]} Re8 {[%emt 0:00:00]} 41. Qd2 {[%emt 0:04:25]} Re7 {[%emt 0:10:15]} 42. Rd6 {[%emt 0:14:01]} Re6 {[%emt 0:03:00]} 43. Rd8 {[%emt 0:00:58]} Re8 {[%emt 0:01:28]} 44. Rd3 {[%emt 0:13:40]} Re6 45. Qb2 Re7 46. Rd1 Rd7 47. Rd2 Rxd2 48. Qxd2 Ke7 49. Kf1 b5 50. cxb5 {[%emt 0:00:00]} cxb5 {[%emt 0:04:52]} 51. Qc3 {[%emt 0:01:33]} b4 {[%emt 0:22:50]} 52. Qc4 {[%emt 0:00:57]} Qd6 {[%emt 0:01:01]} 53. Qb5 {[%emt 0:00:35]} Qc7 {[%emt 0:00:38]} 54. Qa6 {[%emt 0:00:36]} Kf7 {[%emt 0:02:05]} 55. Ke1 {[%emt 0:01:17]} Ke7 {[%emt 0:01:08]} 56. Be2 {[%emt 0:00:28]} Kf7 {[%emt 0:01:22]} 57. Bc4+ {[%emt 0:00:19]} Kg7 {[%emt 0:00:16]} 58. Qe6 {[%emt 0:00:30]} Qd8 {[%emt 0:00:30]} 59. Qe5 {[%emt 0:00:30]} Kh7 {[%emt 0:00:30]} 60. Ke2 {[%emt 0:00:30]} Ne4 {[%emt 0:00:30]} 61. Bd3 {[%emt 0:00:42]} Nc3+ {[%emt 0:00:37]} 62. Kd2 {[%emt 0:00:25]} Qxh4 {[%emt 0:00:33]} 63. Ke1 {[%emt 0:00:36]} Qh1+ {[%emt 0:00:24]} 64. Bf1 {[%emt 0:00:12]} Qe4 {[%emt 0:00:24]} 65. Qxe4 {[%emt 0:00:49]} Nxe4 {[%emt 0:00:31]} 66. f3 {[%emt 0:00:28]} Nc3 {[%emt 0:00:31]} 67. Kd2 {[%emt 0:00:05]} Nd5 {[%emt 0:00:35]} 68. Bc4 {[%emt 0:00:48]} Nb6 {[%emt 0:00:11]} 69. Be6 Kg7 {[%emt 0:01:37]} 70. e4 {[%emt 0:01:08]} Kf6 {[%emt 0:00:00]} 71. Bg8 a4 {[%emt 0:01:00]} 72. e5+ {[%emt 0:01:00]} Kg7 {[%emt 0:00:30]} 73. Be6 {[%emt 0:00:24]} a3 {[%emt 0:00:30]} 74. Ke3 {[%emt 0:01:08]} h4 {[%emt 0:00:00]} 75. Kf2 {[%emt 0:00:00]} c4 {[%emt 0:00:00]} 76. bxc4 {[%emt 0:00:21]} b3 {[%emt 0:00:00]} 77. c5 {[%emt 0:00:15]} b2 {[%emt 0:00:00]} 0-1

[Event "Colombia Tierra de Atletas-B 2020"]
[Site "Medellin"]
[Date "2020.12.12"]
[Round "1.6"]
[White "Vera Siguenas, Deivy"]
[Black "Ruiz Castillo, Joshua Daniel"]
[Result "1/2-1/2"]
[ECO "E53"]
[WhiteElo "2503"]
[BlackElo "2498"]
[Annotator "RC"]
[PlyCount "138"]
[EventDate "2020.12.10"]
[EventType "tourn"]
[EventCountry "COL"]
[SourceTitle "playchess.com"]
[Source "ChessBase"]
[SourceQuality "1"]
[TimeControl "40/5400+30:1800+30"]

1. d4 {[%emt 0:00:00]} Nf6 {[%emt 0:00:00]} 2. c4 {[%emt 0:00:00]} e6 {[%emt 0:00:00]} 3. Nc3 {[%emt 0:00:00]} Bb4 {[%emt 0:00:14]} 4. e3 {[%emt 0:00:00]} O-O {[%emt 0:00:14]} 5. Bd3 {[%emt 0:00:01]} d5 {[%emt 0:00:15]} 6. Nf3 {[%emt 0:00:49]} c5 {[%emt 0:00:22]} 7. cxd5 {[%emt 0:00:05]} exd5 {[%emt 0:00:39]} 8. dxc5 {[%emt 0:00:05]} Nbd7 {[%emt 0:08:13]} 9. Bd2 {[%emt 0:00:26]} Nxc5 {[%emt 0:03:20]} 10. Be2 {[%emt 0:00:06]} Ba5 {[%emt 0:01:35]} 11. O-O {[%emt 0:00:29]} Nce4 {[%emt 0:00:25]} 12. Nxe4 {[%emt 0:09:25]} dxe4 {[%emt 0:00:34]} 13. Nd4 {[%emt 0:01:11]} Bxd2 {[%emt 0:18:31]} 14. Qxd2 {[%emt 0:00:54]} Bg4 {[%emt 0:00:00]} 15. Bc4 {[%emt 0:04:00]} Qd6 {[%emt 0:03:08]} 16. h3 {[%emt 0:00:42]} Bh5 {[%emt 0:01:17]} 17. Qa5 {[%emt 0:02:41]} Rfc8 {[%emt 0:02:23]} 18. Rac1 {[%emt 0:03:09]} b6 {[%emt 0:01:34]} 19. Qg5 {[%emt 0:09:37]} Rc5 {[%emt 0:08:08]} 20. Nf5 {[%emt 0:00:36]} Qf8 {[%emt 0:00:04]} 21. b4 {[%emt 0:00:11]} Rcc8 {[%emt 0:00:55]} 22. Ba6 {[%emt 0:10:06]} Rxc1 {[%emt 0:03:16]} 23. Rxc1 {[%emt 0:00:05]} Bg6 {[%emt 0:00:04]} 24. a3 {[%emt 0:03:32]} Bxf5 {[%emt 0:09:57]} 25. Qxf5 {[%emt 0:00:18]} h6 {[%emt 0:10:53]} 26. Qe5 {[%emt 0:09:38]} Re8 {[%emt 0:01:19]} 27. Qc7 {[%emt 0:01:25]} Qe7 {[%emt 0:05:32]} 28. Bb5 {[%emt 0:10:54]} Nd5 {[%emt 0:00:12]} 29. Qxe7 {[%emt 0:00:13]} Rxe7 {[%emt 0:00:04]} 30. Rc8+ {[%emt 0:00:06]} Kh7 {[%emt 0:00:05]} 31. Bc6 {[%emt 0:00:07]} Nf6 {[%emt 0:04:46]} 32. Kf1 {[%emt 0:00:21]} g5 {[%emt 0:00:06]} 33. Ke2 {[%emt 0:00:40]} Kg7 {[%emt 0:02:22]} 34. a4 {[%emt 0:04:56]} h5 {[%emt 0:03:55]} 35. Rd8 {[%emt 0:05:32]} h4 {[%emt 0:03:21]} 36. Rd4 {[%emt 0:04:13]} Kg6 {[%emt 0:00:34]} 37. b5 {[%emt 0:00:31]} Kf5 {[%emt 0:00:12]} 38. a5 {[%emt 0:00:27]} bxa5 {[%emt 0:00:09]} 39. Ra4 {[%emt 0:00:03]} g4 {[%emt 0:03:28]} 40. Rxa5 {[%emt 0:00:00]} Kg6 {[%emt 0:00:00]} 41. Ra4 {[%emt 0:06:25]} gxh3 {[%emt 0:02:20]} 42. gxh3 {[%emt 0:00:05]} Kf5 {[%emt 0:00:06]} 43. f3 {[%emt 0:01:12]} exf3+ {[%emt 0:00:23]} 44. Kxf3 {[%emt 0:00:16]} Kg5 {[%emt 0:00:04]} 45. Ra5 {[%emt 0:03:19]} Kg6 {[%emt 0:00:40]} 46. Ra1 {[%emt 0:00:02]} Nh7 {[%emt 0:02:03]} 47. Kg4 {[%emt 0:09:58]} Ng5 {[%emt 0:02:22]} 48. Ra3 {[%emt 0:01:14]} f6 {[%emt 0:00:57]} 49. Kxh4 {[%emt 0:01:39]} Rh7+ {[%emt 0:00:05]} 50. Kg4 {[%emt 0:00:16]} f5+ {[%emt 0:00:21]} 51. Kf4 {[%emt 0:00:29]} Kf6 {[%emt 0:06:56]} 52. Bg2 {[%emt 0:03:18]} Ne6+ {[%emt 0:03:25]} 53. Kg3 {[%emt 0:00:10]} Rg7+ {[%emt 0:00:49]} 54. Kf2 {[%emt 0:02:38]} Rh7 {[%emt 0:01:50]} 55. Bd5 {[%emt 0:03:07]} Ng5 {[%emt 0:03:03]} 56. h4 {[%emt 0:02:16]} Rxh4 {[%emt 0:00:06]} 57. Rxa7 {[%emt 0:00:04]} Rb4 {[%emt 0:00:58]} 58. Bc6 {[%emt 0:00:10]} Rb2+ {[%emt 0:01:22]} 59. Ke1 {[%emt 0:00:14]} Nf7 {[%emt 0:00:10]} 60. Kd1 {[%emt 0:05:03]} Ne5 {[%emt 0:01:26]} 61. Ra3 {[%emt 0:01:41]} Ke6 {[%emt 0:05:20]} 62. Kc1 {[%emt 0:00:02]} Rb4 {[%emt 0:00:12]} 63. Kc2 {[%emt 0:00:51]} Nxc6 {[%emt 0:02:41]} 64. bxc6 {[%emt 0:00:04]} Kd6 {[%emt 0:00:03]} 65. Rc3 {[%emt 0:00:15]} Kc7 {[%emt 0:00:02]} 66. Kd3 {[%emt 0:00:15]} Re4 {[%emt 0:00:18]} 67. Rc5 {[%emt 0:01:10]} Re6 {[%emt 0:00:50]} 68. Kc4 {[%emt 0:01:50]} Rxe3 {[%emt 0:00:08]} 69. Rxf5 {[%emt 0:00:03]} Kxc6 {[%emt 0:00:06]} 1/2-1/2

[Event "Colombia Tierra de Atletas-B 2020"]
[Site "Medellin"]
[Date "2020.12.12"]
[Round "2.2"]
[White "Malka, Samuel"]
[Black "Mateus, Alejandro"]
[Result "0-1"]
[ECO "E04"]
[WhiteElo "2203"]
[BlackElo "2353"]
[Annotator "RC"]
[PlyCount "128"]
[EventDate "2020.12.10"]
[EventType "tourn"]
[EventCountry "COL"]
[SourceTitle "playchess.com"]
[Source "ChessBase"]
[SourceQuality "1"]
[TimeControl "40/5400+30:1800+30"]

1. d4 {[%emt 0:05:58]} Nf6 {[%emt 0:00:00]} 2. c4 {[%emt 0:00:05]} e6 {[%emt 0:00:00]} 3. g3 {[%emt 0:00:01]} d5 {[%emt 0:00:27]} 4. Nf3 {[%emt 0:00:02]} dxc4 {[%emt 0:00:38]} 5. Bg2 {[%emt 0:00:01]} Bb4+ {[%emt 0:00:23]} 6. Bd2 {[%emt 0:00:11]} c5 {[%emt 0:00:16]} 7. dxc5 {[%emt 0:10:11]} Bxc5 {[%emt 0:00:18]} 8. Qa4+ {[%emt 0:01:12]} Bd7 {[%emt 0:02:29]} 9. Qxc4 {[%emt 0:00:46]} Qb6 {[%emt 0:02:10]} 10. O-O {[%emt 0:01:28]} Bb5 {[%emt 0:01:16]} 11. Qh4 {[%emt 0:00:34]} Bxe2 {[%emt 0:07:36]} 12. b4 {[%emt 0:10:47]} Be7 {[%emt 0:04:53]} 13. Re1 {[%emt 0:04:40]} Nd5 {[%emt 0:17:50]} 14. Qe4 {[%emt 0:09:08]} Bxf3 {[%emt 0:04:37]} 15. Bxf3 {[%emt 0:00:16]} O-O {[%emt 0:01:06]} 16. Nc3 {[%emt 0:03:49]} Nc6 {[%emt 0:06:36]} 17. Rab1 {[%emt 0:04:55]} Rad8 {[%emt 0:04:14]} 18. Na4 {[%emt 0:09:46]} Qd4 {[%emt 0:05:04]} 19. Red1 {[%emt 0:06:41]} Ne5 {[%emt 0:09:23]} 20. Bg2 {[%emt 0:06:41]} Qxe4 {[%emt 0:00:29]} 21. Bxe4 {[%emt 0:00:01]} Nc4 {[%emt 0:01:03]} 22. Be1 {[%emt 0:23:47]} Bf6 {[%emt 0:03:51]} 23. Nc5 {[%emt 0:00:00]} b6 {[%emt 0:01:06]} 24. Nb3 {[%emt 0:00:00]} g6 {[%emt 0:06:48]} 25. Nd4 {[%emt 0:00:00]} Rd7 {[%emt 0:02:36]} 26. b5 {[%emt 0:00:00]} Rc8 {[%emt 0:04:31]} 27. a4 {[%emt 0:00:00]} Na3 {[%emt 0:05:24]} 28. Ra1 {[%emt 0:00:00]} Bxd4 {[%emt 0:02:33]} 29. Rxd4 {[%emt 0:00:00]} Nc2 {[%emt 0:01:40]} 30. Rc1 {[%emt 0:00:55]} Rdc7 {[%emt 0:00:38]} 31. Rdd1 {[%emt 0:02:01]} Nxe1 {[%emt 0:01:23]} 32. Rxc7 {[%emt 0:00:05]} Rxc7 {[%emt 0:00:21]} 33. Bxd5 {[%emt 0:00:20]} exd5 {[%emt 0:00:52]} 34. Rxe1 {[%emt 0:00:01]} Rc4 {[%emt 0:01:53]} 35. a5 {[%emt 0:02:01]} bxa5 {[%emt 0:01:46]} 36. Re7 {[%emt 0:00:08]} Rb4 {[%emt 0:00:33]} 37. Rxa7 {[%emt 0:00:13]} Rxb5 {[%emt 0:00:05]} 38. h4 {[%emt 0:00:48]} Kg7 {[%emt 0:01:22]} 39. Ra6 {[%emt 0:00:01]} Kf8 {[%emt 0:00:44]} 40. Ra7 {[%emt 0:00:00]} h5 {[%emt 0:00:00]} 41. Kf1 {[%emt 0:02:04]} d4 {[%emt 0:03:37]} 42. Ke2 {[%emt 0:05:13]} Rd5 {[%emt 0:03:23]} 43. Kd3 {[%emt 0:00:51]} Kg7 {[%emt 0:02:13]} 44. Ra6 {[%emt 0:00:44]} Rf5 {[%emt 0:01:53]} 45. Ke2 {[%emt 0:07:41]} d3+ {[%emt 0:01:51]} 46. Ke3 {[%emt 0:00:29]} Rd5 {[%emt 0:00:30]} 47. Kd2 {[%emt 0:00:08]} Kf8 {[%emt 0:00:33]} 48. Ra7 {[%emt 0:00:29]} Ke8 {[%emt 0:00:21]} 49. Rb7 {[%emt 0:02:55]} Rf5 {[%emt 0:02:21]} 50. f4 {[%emt 0:09:17]} Rd5 {[%emt 0:00:39]} 51. Ra7 {[%emt 0:00:14]} Kf8 {[%emt 0:02:52]} 52. Rb7 {[%emt 0:00:07]} Kg7 {[%emt 0:00:33]} 53. Rb6 {[%emt 0:00:02]} Rd4 {[%emt 0:03:06]} 54. Ra6 {[%emt 0:03:47]} Ra4 {[%emt 0:01:18]} 55. Kxd3 {[%emt 0:00:55]} Ra3+ {[%emt 0:00:08]} 56. Ke2 {[%emt 0:00:07]} Rxg3 {[%emt 0:00:42]} 57. Rxa5 {[%emt 0:00:13]} Rg4 {[%emt 0:00:14]} 58. Kf3 {[%emt 0:00:19]} Rxh4 {[%emt 0:00:11]} 59. Kg3 {[%emt 0:02:16]} Rg4+ {[%emt 0:01:04]} 60. Kf3 {[%emt 0:00:14]} Rg1 {[%emt 0:00:23]} 61. Kf2 {[%emt 0:00:29]} Rb1 {[%emt 0:00:09]} 62. Kg3 {[%emt 0:00:15]} Rb3+ {[%emt 0:01:27]} 63. Kh4 {[%emt 0:02:48]} Rf3 {[%emt 0:02:00]} 64. Ra4 {[%emt 0:01:54]} Kh6 {[%emt 0:00:11]} 0-1